bitfinex-derivatives/quotes_ETHF0:USTF0_20250602
["timestamp","ask_amount","ask_price","bid_price","bid_amount"]
[1748884716531,5.25483,2547.1,2547.0,4.044]
[1748884717535,3.8693,2547.4,2547.0,4.044]
[1748884717733,1.44624,2547.4,2547.3,0.78477]
[1748884717937,7.13424336,2547.7,2547.6,0.78467]
[1748884718139,0.6712,2547.9,2547.8,0.78461]
[1748884718335,1.45578,2547.9,2547.8,0.78461]
[1748884718631,0.78464,2547.7,2547.6,2.13835]
[1748884719037,0.78464,2547.8,2547.7,0.78463]
[1748884719236,0.78464,2547.7,2547.6,1.3537]
[1748884719432,0.78461,2547.8,2547.7,0.78464]
[1748884719633,0.6712,2547.9,2547.8,0.78461]
[1748884719837,3.2078,2548.1,2548.0,0.78455]
[1748884720036,3.2078,2548.1,2547.9,5.3887]
[1748884720241,0.78455,2548.0,2547.9,4.035]
[1748884720443,0.78464,2547.7,2547.6,3.99246]
[1748884720639,3.2078,2548.1,2547.8,0.7846]
[1748884720640,0.78461,2547.9,2547.8,0.7846]
[1748884721346,0.78457,2548.0,2547.9,0.78457]
[1748884721533,3.2078,2548.1,2547.7,2.1881]
[1748884721738,3.2078,2548.1,2548.0,0.78455]
[1748884721939,0.6548,2548.4,2548.1,0.78451]
[1748884722141,3.879,2548.5,2548.0,5.99635]
[1748884722443,0.78445,2548.4,2548.3,0.78443]
[1748884722644,3.879,2548.5,2548.1,1.9282]
[1748884722846,0.78447,2548.3,2548.2,0.78447]
[1748884723045,1.96109,2548.4,2548.0,4.81954]
[1748884723345,0.78452,2548.1,2548.0,4.81954]
[1748884723540,0.78455,2548.0,2547.9,4.81856]
[1748884723746,0.78455,2548.0,2547.9,4.034]
[1748884723948,0.78455,2548.0,2547.9,4.81858]
[1748884724142,0.78454,2548.1,2548.0,0.78454]
[1748884724445,0.78447,2548.3,2548.2,0.78448]
[1748884724746,0.78449,2548.3,2548.2,0.78448]
[1748884724943,0.7845,2548.2,2548.1,0.7845]
[1748884725445,5.84002,2548.5,2548.1,0.7845]
[1748884725446,3.2078,2548.5,2548.1,1.96131]
[1748884725752,0.78431,2548.8,2548.7,0.78434]
[1748884726047,0.78431,2548.8,2548.7,4.81834]
[1748884726645,6.31538918,2549.1,2548.7,4.034]
[1748884726944,3.2078,2549.4,2548.9,3.2078]
[1748884727148,3.2078,2549.4,2549.3,0.78415]
[1748884727744,3.8413,2549.9,2549.2,5.16823]
[1748884728047,5.80127,2549.9,2549.3,1.2796]
[1748884728247,0.78405,2549.7,2549.6,0.78405]
[1748884728649,3.8413,2549.9,2549.5,1.2796]
[1748884728849,0.78406,2549.6,2549.5,2.06367]
[1748884729552,0.78404,2549.7,2549.6,0.78404]
[1748884729849,0.78403,2549.7,2549.6,0.78404]
[1748884730444,0.78402,2549.8,2549.7,0.78403]
[1748884730750,0.78404,2549.7,2549.6,0.78404]
[1748884731147,3.8413,2549.9,2549.5,1.2796]
[1748884731548,0.78401,2549.8,2549.7,0.78402]
[1748884732347,3.8413,2549.9,2549.5,1.2796]
[1748884732744,3.99179,2549.9,2549.8,0.784]
[1748884732950,3.2078,2549.9,2549.8,0.784]
[1748884733455,21.5058,2550.2,2549.6,0.6317]
[1748884733646,0.78403,2549.7,2549.6,1.41574]
[1748884733947,0.78403,2549.7,2549.6,0.6317]
[1748884734548,0.78403,2549.7,2549.6,1.41576]
[1748884734749,0.78402,2549.8,2549.7,0.784]
[1748884734955,0.78402,2549.8,2549.7,2.0283]
[1748884735251,0.78402,2549.8,2549.7,2.02833]
[1748884735552,0.78402,2549.8,2549.7,1.2443]
[1748884735947,0.78402,2549.8,2549.7,2.02833]
[1748884736159,0.78402,2549.8,2549.7,1.2443]
[1748884737152,0.78403,2549.7,2549.6,1.5414]
[1748884737753,0.78403,2549.7,2549.6,2.32546]
[1748884738454,0.78403,2549.7,2549.6,2.32545]
[1748884739253,0.78403,2549.7,2549.6,0.9097]
[1748884739950,0.78403,2549.7,2549.6,4.43926]
[1748884740252,3.8542,2549.9,2549.6,4.43926]
[1748884740460,21.4988,2549.9,2549.6,3.6552]
[1748884740756,0.78403,2549.7,2549.6,3.6552]
[1748884741663,2.11393,2549.7,2549.6,3.6552]
[1748884742462,2.11393,2549.7,2549.6,3.0176291]
[1748884742954,2.11393,2549.7,2549.6,2.7455]
[1748884743155,1.3299,2549.7,2549.6,3.52956]
[1748884743363,4.55131918,2549.8,2549.7,0.78403]
[1748884743656,19.07303,2549.8,2549.7,0.41623039]
[1748884743847,0.78403,2549.8,2549.7,0.41623039]
[1748884744050,0.78403,2549.7,2549.6,3.52954]
[1748884744250,0.78403,2549.7,2549.6,2.7455]
[1748884744955,0.78403,2549.7,2549.6,3.52956]
[1748884745655,0.78403,2549.7,2549.6,2.7455]
[1748884745848,2.76193,2549.7,2549.6,2.7455]
[1748884747150,5.86951918,2549.7,2549.6,2.7455]
[1748884747559,4.56161918,2549.7,2549.6,2.7455]
[1748884748659,3.89161918,2549.7,2549.6,2.7455]
[1748884748856,3.10758918,2549.7,2549.6,6.48976]
[1748884749156,19.07101,2549.8,2549.7,0.78403]
[1748884749357,3.99179,2549.9,2549.8,0.784]
[1748884749550,21.4948,2549.9,2549.8,0.784]
[1748884749756,22.27877,2549.9,2549.8,0.784]
[1748884749952,3.2078,2549.9,2549.8,0.784]
[1748884750260,21.4938,2549.9,2549.8,0.784]
[1748884751259,3.99177,2549.9,2549.8,0.784]
[1748884751564,21.4938,2549.9,2549.8,0.784]
[1748884752057,3.2078,2549.9,2549.8,4.809]
[1748884752253,3.99177,2549.9,2549.8,4.809]
[1748884752559,7.91821336,2549.9,2549.8,4.809]
[1748884752755,3.2078,2549.9,2549.8,4.809]
[1748884753359,3.92644336,2549.9,2549.8,4.809]
[1748884753659,3.12230992,2549.9,2549.8,4.809]
[1748884754068,3.90627992,2549.9,2549.8,4.809]
[1748884754367,0.78397,2549.9,2549.8,4.809]
[1748884754751,0.78397,2549.9,2549.8,4.025]
[1748884754957,4.71041336,2549.9,2549.8,4.025]
[1748884755161,0.78397,2549.9,2549.8,4.025]
[1748884755558,3.99177,2549.9,2549.8,4.025]
[1748884755765,6.55377,2549.9,2549.8,1.13950066]
[1748884756362,0.78403,2549.7,2549.6,5.7057]
[1748884756560,19.06803,2549.7,2549.6,5.7057]
[1748884757069,23.76501886,2549.7,2549.6,6.48976]
[1748884757360,18.283,2549.7,2549.6,6.48976]
[1748884757565,19.06703,2549.7,2549.6,6.48976]
[1748884758164,3.2078,2549.9,2549.8,0.784]
[1748884758372,22.27377,2549.9,2549.8,0.784]
[1748884758661,3.2078,2549.9,2549.8,0.784]
[1748884758859,21.4898,2549.9,2549.8,1.4595]
[1748884759054,3.2078,2549.9,2549.8,1.4595]
[1748884759263,5.48252117,2549.9,2549.8,1.4595]
[1748884759562,23.76452117,2550.1,2550.0,0.78394]
[1748884760061,5.48252117,2550.1,2550.0,5.78394]
[1748884760266,5.48252117,2550.2,2550.1,0.78391]
[1748884760563,5.48252117,2550.2,2550.1,6.05421]
[1748884760564,9.39479292,2550.2,2550.1,6.05421]
[1748884760766,3.91227175,2550.2,2550.1,6.05421]
[1748884761969,6.26631117,2550.5,2550.4,0.78382]
[1748884762264,5.48252117,2550.5,2550.4,0.78382]
[1748884762462,8.69032117,2550.6,2550.5,0.78379]
[1748884762664,8.69032117,2550.6,2550.5,4.80879]
[1748884763067,3.2078,2550.6,2550.5,6.05409]
[1748884763768,7.11470786,2550.6,2550.5,6.05409]
[1748884764369,3.90690786,2550.6,2550.5,6.05409]
[1748884764566,4.69060786,2550.8,2550.7,0.78373]
[1748884764766,3.90690786,2550.8,2550.7,0.78373]
[1748884765064,3.90690786,2550.8,2550.6,0.78374]
[1748884765260,0.78376,2550.6,2550.5,4.025]
[1748884765664,0.78385,2550.3,2550.2,4.02988293]
[1748884765970,0.78391,2550.1,2550.0,0.66773549]
[1748884766156,0.78391,2550.1,2550.0,5.3058]
[1748884766356,0.78391,2550.1,2550.0,4.024]
[1748884766563,3.99171,2550.1,2550.0,4.024]
[1748884767761,13.7106703,2550.1,2550.0,4.024]
[1748884767962,11.8276703,2550.1,2550.0,4.024]
[1748884768562,3.99171,2550.1,2550.0,4.024]
[1748884768968,5.25411,2550.1,2550.0,4.024]
[1748884771274,23.53111,2550.1,2550.0,4.024]
[1748884771474,22.26871,2550.1,2550.0,4.024]
[1748884772470,0.78397,2549.9,2549.8,0.00588293]
[1748884773571,0.78397,2549.9,2549.8,2.80308293]
[1748884773776,19.06097,2549.9,2549.8,0.37158279]
[1748884774074,0.78397,2549.9,2549.8,0.37158279]
[1748884774376,7.81250339,2549.9,2549.8,4.39658279]
[1748884774579,7.81250339,2549.9,2549.8,5.18059279]
[1748884775077,8.59643339,2550.1,2549.9,0.78396]
[1748884775378,8.59642339,2550.1,2550.0,0.78395]
[1748884775566,8.59642339,2550.1,2550.0,1.41455]
[1748884775970,26.87342339,2550.1,2550.0,0.6306]
[1748884776178,19.06092,2550.1,2550.0,0.6306]
[1748884776875,18.277,2550.1,2550.0,1.41455]
[1748884777071,3.13110383,2550.3,2550.0,0.61816573]
[1748884777277,3.13110383,2550.3,2550.2,0.78389]
[1748884777579,3.91495383,2550.3,2550.2,0.78389]
[1748884777880,0.78389,2550.2,2550.1,2.7283]
[1748884778179,3.91497383,2550.3,2550.2,0.78389]
[1748884778380,0.78389,2550.2,2550.1,0.78392]
[1748884778674,3.91495383,2550.3,2550.2,0.78389]
[1748884778873,0.00584325,2550.3,2550.2,0.78389]
[1748884779877,0.00584325,2550.3,2550.2,4.62439]
[1748884780282,0.00584325,2550.3,2550.2,9.62439]
[1748884781781,3.12526058,2551.0,2550.9,0.78367]
[1748884782088,3.12526058,2551.1,2551.0,0.78364]
[1748884782287,3.12526058,2551.1,2551.0,2.06714]
[1748884782882,0.6209,2551.3,2551.0,2.06714]
[1748884782883,0.00588293,2551.3,2551.2,0.78358]
[1748884783084,0.00588293,2551.3,2551.2,4.80358]
[1748884783392,0.00588293,2551.3,2551.2,8.01138]
[1748884784674,0.00588293,2551.3,2551.2,3.99138]
[1748884784876,0.00588293,2551.3,2551.2,4.80358]
[1748884785282,0.00588293,2551.3,2551.2,6.04098]
[1748884785479,0.78943293,2551.3,2551.2,6.04098]
[1748884785684,0.78366,2551.0,2550.9,4.80366]
[1748884785985,0.78366,2551.0,2550.9,0.78366]
[1748884786184,2.7769,2551.2,2551.1,0.78361]
[1748884786377,0.00588293,2551.3,2551.2,0.78358]
[1748884786684,0.78358,2551.2,2551.1,0.78359]
[1748884786887,3.99725293,2551.3,2551.2,0.78358]
[1748884787187,0.78358,2551.2,2551.1,0.78359]
[1748884787487,3.99725293,2551.3,2551.2,0.78358]
[1748884788080,0.00588293,2551.3,2551.2,0.78358]
[1748884788476,0.00588293,2551.3,2551.2,1.45498]
[1748884788787,0.78332,2552.1,2552.0,0.78332]
[1748884788981,1.44979,2552.2,2552.1,0.7833]
[1748884789384,1.9062,2552.2,2551.8,1.2678]
[1748884789585,0.78337,2551.9,2551.8,0.78339]
[1748884789886,1.9062,2552.2,2552.1,0.7833]
[1748884790184,1.9062,2552.2,2551.8,2.05118]
[1748884790381,1.9062,2552.2,2551.9,0.78336]
[1748884790577,1.9062,2552.2,2551.5,9.1855]
[1748884790578,1.95826,2552.1,2551.6,1.2472]
[1748884790779,1.95826,2552.1,2551.4,3.2078]
[1748884790780,3.24457,2552.0,2551.4,3.2078]
[1748884791082,0.78337,2551.9,2551.8,0.78337]
[1748884791385,0.78337,2551.9,2551.8,0.78336]
[1748884791782,2.06954,2552.0,2551.9,0.78336]
[1748884792277,0.78336,2551.9,2551.8,0.78337]
[1748884792475,19.5522,2552.0,2551.6,0.6234]
[1748884792683,3.2078,2551.7,2551.3,5.8896]
[1748884792887,3.99124,2551.7,2551.6,0.78345]
[1748884793081,3.2078,2552.0,2551.4,3.2078]
[1748884793288,0.78337,2551.9,2551.8,0.78337]
[1748884793785,0.78336,2552.0,2551.9,0.78336]
[1748884794281,0.6665,2552.2,2551.7,5.97757]
[1748884794487,0.78332,2552.1,2552.0,0.78332]
[1748884794677,0.78327,2552.2,2552.1,0.7833]
[1748884794878,19.04722,2552.4,2552.3,0.78324]
[1748884795083,0.78325,2552.3,2552.2,0.78324]
[1748884795286,0.78322,2552.4,2552.3,0.78321]
[1748884795589,18.264,2552.5,2552.1,0.00588293]
[1748884795784,0.78326,2552.3,2552.2,0.78324]
[1748884796085,19.6116,2552.5,2552.1,0.00588293]
[1748884796086,1.95774,2552.8,2552.1,4.02388293]
[1748884796292,1.9938,2552.8,2552.2,3.31997]
[1748884796493,0.78317,2552.6,2552.5,0.78316]
[1748884796696,20.2578,2552.8,2552.3,0.6797]
[1748884796898,0.78321,2552.4,2552.3,1.46293]
[1748884797185,5.1657,2552.6,2552.2,2.14506]
[1748884797394,0.78324,2552.3,2552.2,0.78326]
[1748884798287,0.78327,2552.2,2552.1,4.02388293]
[1748884799991,0.78327,2552.2,2552.1,4.80718293]
[1748884800385,0.78339,2551.8,2551.7,3.2078]
[1748884800587,0.78339,2551.8,2551.7,3.99121]
[1748884800990,0.78346,2551.6,2551.5,1.46097]
[1748884801187,1.9579,2551.9,2551.5,1.9476]
[1748884801392,0.78344,2551.7,2551.6,0.78343]
[1748884801595,0.78346,2551.6,2551.5,2.73105]
[1748884801888,0.78343,2551.7,2551.6,0.78342]
[1748884802284,2.74129,2551.9,2551.8,0.78339]
[1748884802494,0.78342,2551.8,2551.7,0.7834]
[1748884802796,1.9579,2551.9,2551.4,1.96467293]
[1748884802988,2.10862,2551.8,2551.7,0.78342]
[1748884803186,4.62758,2551.9,2551.8,0.78339]
[1748884803686,3.2078,2551.9,2551.8,0.78339]
[1748884803887,0.00588293,2552.0,2551.9,0.78336]
[1748884804691,0.00588293,2552.0,2551.9,2.78446]
[1748884804890,0.00588293,2552.0,2551.9,6.80246]
[1748884807596,2.93e-06,2552.0,2551.9,11.80246]
[1748884813702,3.12526058,2553.0,2552.7,0.78312]
[1748884813899,5.46920602,2553.2,2553.1,0.78299]
[1748884813900,3.90824058,2553.2,2553.1,0.78299]
[1748884814098,0.78298,2553.2,2553.1,0.78299]
[1748884814300,3.89906392,2553.2,2553.1,0.78299]
[1748884815104,0.78302,2553.0,2552.9,0.00588293]
[1748884815303,3.89845285,2553.0,2552.9,0.00588293]
[1748884815503,0.78302,2553.0,2552.9,0.00588293]
[1748884815798,2.64332,2553.0,2552.9,3.53083293]
[1748884816201,1.8603,2553.0,2552.9,3.53083293]
[1748884816506,0.6336,2553.0,2552.9,3.53083293]
[1748884816807,2.00964,2553.3,2553.2,0.78296]
[1748884817198,1.2267,2553.3,2553.2,0.78296]
[1748884817908,2.00963,2553.3,2553.2,0.78296]
[1748884818113,1.2267,2553.3,2552.9,7.84938293]
[1748884818413,2.00965,2553.3,2553.2,0.78296]
[1748884818622,1.2267,2553.3,2553.2,0.78296]
[1748884818915,0.78293,2553.3,2553.2,0.78296]
[1748884819213,1.3239,2553.3,2553.2,0.78296]
[1748884819611,2.10683,2553.3,2553.2,0.78296]
[1748884819820,0.78297,2553.2,2553.1,0.78297]
[1748884820112,4.40730218,2553.4,2552.9,11.86438293]
[1748884820317,5.19022218,2553.4,2553.3,0.78293]
[1748884820511,0.78296,2553.2,2552.9,8.65658293]
[1748884820813,0.78301,2553.1,2553.0,0.783]
[1748884821015,0.78302,2553.0,2552.9,2.74778293]
[1748884821213,1.41302,2553.0,2552.9,2.74778293]
[1748884821515,6.41302,2553.0,2552.9,2.74778293]
[1748884821728,1.9578,2552.7,2552.3,0.78322]
[1748884822016,6.32390218,2552.6,2552.1,1.95825]
[1748884822213,0.78322,2552.4,2552.3,0.78322]
[1748884822523,1.3153,2552.6,2552.1,1.3052]
[1748884822720,1.32118293,2552.6,2552.5,0.78318]
[1748884823121,0.78319,2552.5,2552.4,0.7832]
[1748884823317,0.78321,2552.4,2552.3,3.99103]
[1748884823519,0.78322,2552.4,2552.3,0.78323]
[1748884823823,4.43728511,2552.6,2552.5,0.78318]
[1748884824223,5.22043511,2552.6,2552.5,0.78318]
[1748884824920,0.00588293,2552.6,2552.5,0.78318]
[1748884825217,2.93e-06,2552.6,2552.5,0.78318]
[1748884825423,2.93e-06,2552.6,2552.5,2.06558]
[1748884825920,2.93e-06,2552.6,2552.5,2.72158]
[1748884827417,0.78315293,2552.6,2552.5,0.78318]
[1748884827724,2.93e-06,2552.6,2552.5,0.78318]
[1748884828225,0.78315293,2552.6,2552.5,0.78318]
[1748884828412,2.93e-06,2552.6,2552.5,0.78318]
[1748884828818,2.93e-06,2552.6,2552.5,2.01208]
[1748884829022,2.93e-06,2552.6,2552.5,0.78318]
[1748884829417,2.03165293,2552.6,2552.5,0.78318]
[1748884829620,1.83610293,2552.6,2552.5,0.78318]
[1748884830318,4.95220511,2552.6,2552.5,0.78318]
[1748884830519,1.83610293,2552.6,2552.5,0.78318]
[1748884830720,4.95220511,2552.6,2552.5,0.78318]
[1748884831126,0.78318,2552.5,2552.4,1.0501]
[1748884831316,4.46730218,2552.5,2552.4,1.0501]
[1748884831526,5.25048218,2552.5,2552.4,0.2669]
[1748884831828,1.3855,2552.5,2552.4,1.05011]
[1748884832826,3.70817564,2552.6,2552.5,0.78318]
[1748884833227,0.58760293,2552.6,2552.5,0.78318]
[1748884833523,3.70974528,2552.6,2552.5,0.78318]
[1748884835524,0.58760293,2552.6,2552.5,0.78318]
[1748884835927,2.66345293,2552.6,2552.5,0.78318]
[1748884836426,1.88030293,2552.6,2552.5,0.78318]
[1748884838232,0.58760293,2552.6,2552.5,0.78318]
[1748884838532,3.71279502,2552.6,2552.5,2.05678]
[1748884841528,0.58760293,2552.6,2552.5,2.05678]
[1748884842723,2.32642209,2552.8,2552.7,0.78312]
[1748884842920,5.46920602,2553.3,2553.1,0.78299]
[1748884842921,3.90657573,2553.2,2553.1,0.78299]
[1748884843125,2.94423573,2553.5,2553.4,0.7829]
[1748884843326,8.67700602,2553.8,2553.7,0.78281]
[1748884843327,3.2078,2553.8,2553.7,0.78281]
[1748884843536,20.35626,2553.9,2553.8,0.78278]
[1748884843730,0.78281,2553.8,2553.7,0.78279]
[1748884843930,0.78281,2553.7,2553.6,0.78869293]
[1748884844628,0.78281,2553.7,2553.6,0.00588293]
[1748884845135,5.78281,2553.7,2553.6,0.00588293]
[1748884845630,25.39951,2553.7,2553.6,0.78872293]
[1748884845832,2.07651,2553.7,2553.6,0.78872293]
[1748884846135,20.40151,2553.7,2553.6,0.78872293]
[1748884846433,20.40151,2553.7,2553.6,0.00588293]
[1748884846630,25.40151,2553.7,2553.6,0.00588293]
[1748884847528,25.40151,2553.7,2553.1,3.2078]
[1748884847732,0.78295,2553.3,2553.2,0.78294]
[1748884847935,0.78308,2552.8,2552.7,8.70909]
[1748884848123,0.78308,2552.8,2552.7,4.66509]
[1748884848633,0.78308,2552.8,2552.7,3.99089]
[1748884848829,0.78307,2552.9,2552.8,0.78305]
[1748884849035,19.11907,2552.9,2552.8,0.78305]
[1748884849534,0.78315,2552.6,2552.5,2.05734293]
[1748884850137,0.78315,2552.6,2552.5,0.00588293]
[1748884850436,0.00588293,2553.0,2552.5,1.96381293]
[1748884850626,0.78313,2552.7,2552.6,0.78313]
[1748884850826,0.00585117,2552.8,2552.7,0.78312]
[1748884851936,0.00585117,2552.8,2552.5,2.69255293]
[1748884852130,0.78315,2552.6,2552.5,0.00588293]
[1748884853034,7.75800209,2552.7,2552.5,0.00588293]
[1748884853035,3.90200209,2552.7,2552.6,0.78315]
[1748884853336,22.25400209,2552.7,2552.6,0.78315]
[1748884853630,19.13511,2552.7,2552.6,0.78315]
[1748884853834,18.352,2552.7,2552.6,0.78315]
[1748884854033,19.13511,2552.7,2552.6,0.78315]
[1748884854332,19.13511,2552.7,2552.6,0.6372]
[1748884854836,19.13511,2552.7,2552.6,1.42035]
[1748884855033,0.78311,2552.7,2552.6,1.42035]
[1748884855232,0.78315,2552.6,2552.5,0.00588293]
[1748884855937,4.68515209,2552.6,2552.5,0.00588293]
[1748884856441,4.68515209,2552.6,2552.5,0.51998293]
[1748884856937,5.92105209,2552.6,2552.5,0.51998293]
[1748884857437,6.55455209,2552.6,2552.5,0.51998293]
[1748884860232,23.50290209,2552.6,2552.5,0.51998293]
[1748884860427,23.05115209,2552.6,2552.5,0.51998293]
[1748884860630,20.42975,2552.6,2552.5,0.51998293]
[1748884861539,0.78315,2552.6,2552.5,0.51998293]
[1748884861739,0.78315,2552.6,2552.5,2.49508293]
[1748884862039,0.78315,2552.6,2552.5,0.51998293]
[1748884862338,2.04775,2552.6,2552.5,0.51998293]
[1748884863235,5.25555,2552.6,2552.5,0.51998293]
[1748884863536,2.04775,2552.6,2552.5,0.51998293]
[1748884863736,5.25555,2552.6,2552.5,0.51998293]
[1748884865132,10.72475602,2552.6,2552.5,0.51998293]
[1748884865332,29.12075602,2552.6,2552.5,0.51998293]
[1748884865638,23.65255,2552.6,2552.5,0.51998293]
[1748884866835,5.25555,2552.6,2552.5,0.51998293]
[1748884867032,20.44675,2552.6,2552.5,0.51998293]
[1748884867339,23.65455,2552.6,2552.5,0.51998293]
[1748884868336,31.78727,2552.6,2551.3,3.2078]
[1748884868539,0.7835,2551.5,2551.4,0.7835]
[1748884868740,19.20248,2551.5,2551.4,1.2357]
[1748884869337,19.20248,2551.5,2551.4,2.01921]
[1748884869543,18.419,2551.5,2551.4,2.01921]
[1748884869837,18.42,2551.5,2551.4,2.01921]
[1748884870142,0.00588293,2551.7,2551.6,0.78345]
[1748884870347,18.42588293,2551.7,2551.6,3.99125]
[1748884870643,18.42588293,2551.7,2551.5,0.78346]
[1748884870841,18.42588293,2551.7,2551.6,0.78345]
[1748884871149,0.78347,2551.6,2551.5,0.78346]
[1748884871447,19.20932293,2551.7,2551.6,0.78345]
[1748884871743,0.78345,2551.6,2551.5,2.13246]
[1748884872241,0.78345,2551.6,2551.5,1.349]
[1748884872639,0.78348,2551.5,2551.4,0.006]
[1748884872839,0.78348,2551.5,2551.4,1.257]
[1748884873138,0.78348,2551.5,2551.4,2.04051]
[1748884873332,0.00588293,2551.7,2551.6,0.78345]
[1748884874142,0.78930293,2551.7,2551.6,2.03445]
[1748884874540,0.78930293,2551.7,2551.6,1.251]
[1748884875141,19.19930293,2551.7,2551.6,2.03445]
[1748884875736,19.19930293,2551.7,2551.6,1.251]
[1748884875932,19.19930293,2551.7,2551.6,2.03445]
[1748884876141,0.78348,2551.5,2551.4,0.006]
[1748884877043,2.11268,2551.5,2551.4,0.006]
[1748884877245,0.78348,2551.5,2551.4,0.006]
[1748884878141,1.9588,2551.4,2550.5,0.78379]
[1748884878346,1.95926,2550.8,2550.3,3.2078]
[1748884878542,18.45,2550.7,2550.6,0.78376]
[1748884878844,3.2078,2550.9,2550.3,3.2078]
[1748884879045,0.7838,2550.5,2550.3,3.2078]
[1748884879246,0.78383,2550.4,2550.3,0.78384]
[1748884879441,0.7838,2550.5,2550.4,0.78382]
[1748884879748,0.78378,2550.6,2550.2,4.7601]
[1748884879945,0.78378,2550.6,2550.5,0.78379]
[1748884880144,19.708,2550.8,2550.5,0.78379]
[1748884880340,1.259,2550.8,2550.2,4.7601]
[1748884880648,0.78362,2551.1,2550.6,3.2078]
[1748884880844,3.2078,2551.2,2551.1,0.78361]
[1748884881044,0.78362,2551.1,2551.0,0.78362]
[1748884881747,19.24062,2551.1,2551.0,0.78363]
[1748884881951,0.78366,2551.0,2550.9,0.78366]
[1748884882143,22.4504,2551.2,2551.1,0.78361]
[1748884882748,22.45039,2551.2,2551.1,0.78361]
[1748884882945,19.23758,2551.2,2551.1,0.78361]
[1748884883353,0.78362,2551.1,2551.0,0.78362]
[1748884883653,0.78367,2550.9,2550.8,2.02719]
[1748884884157,0.7837,2550.8,2550.7,0.6514]
[1748884884452,4.5203,2551.1,2550.8,0.78369]
[1748884884756,18.473,2551.0,2550.9,0.78365]
[1748884885151,3.2078,2551.4,2550.9,3.2078]
[1748884885454,3.2078,2551.4,2551.0,2.70021]
[1748884885455,0.7836,2551.2,2551.0,2.70021]
[1748884885653,0.78361,2551.1,2551.0,0.6558]
[1748884885855,3.2078,2551.1,2551.0,1.43944]
[1748884886257,3.99141,2551.1,2551.0,1.43944]
[1748884886454,0.78361,2551.1,2551.0,1.43944]
[1748884887359,0.78361,2551.1,2551.0,0.6558]
[1748884887655,2.10471,2551.1,2551.0,0.6558]
[1748884887863,0.78367,2550.9,2550.8,0.6317]
[1748884888058,0.7837,2550.8,2550.7,0.6514]
[1748884888259,0.7837,2550.8,2550.7,2.06683]
[1748884888459,0.7837,2550.8,2550.7,1.2831]
[1748884888963,0.7837,2550.8,2550.7,2.06683]
[1748884889262,0.7837,2550.8,2550.7,0.6317]
[1748884889665,0.78385,2550.4,2550.1,4.11388293]
[1748884889868,0.78381,2550.5,2550.4,0.7838]
[1748884890061,18.465,2550.6,2550.3,1.95962]
[1748884890259,18.465,2550.6,2550.5,0.78379]
[1748884890460,3.2078,2550.9,2550.5,1.95949]
[1748884890661,3.2078,2550.9,2550.8,0.7837]
[1748884890868,1.2503,2551.2,2551.1,0.78361]
[1748884891167,3.11908869,2551.5,2551.4,0.78352]
[1748884891763,3.11908869,2551.5,2551.4,2.69032]
[1748884891970,0.78347,2551.6,2551.4,1.9068]
[1748884892271,0.78348,2551.5,2551.4,2.6903]
[1748884892564,1.95878,2551.5,2550.9,3.2078]
[1748884892767,0.78358,2551.2,2551.1,0.78357]
[1748884892963,0.78361,2551.1,2551.0,0.6464]
[1748884893559,3.99141,2551.1,2551.0,0.6464]
[1748884893759,0.78367,2550.9,2550.8,4.109]
[1748884893972,1.301,2551.0,2550.5,0.6347]
[1748884894174,0.78376,2550.6,2550.5,2.5269]
[1748884894473,19.27276,2550.6,2550.5,2.5269]
[1748884894667,19.26876,2550.6,2550.5,2.5269]
[1748884894873,18.485,2550.6,2550.5,3.31067]
[1748884895170,18.485,2550.6,2550.1,3.21368293]
[1748884895367,0.7838,2550.5,2550.4,0.78382]
[1748884895567,19.2708,2550.5,2550.4,0.78382]
[1748884895767,0.78382,2550.4,2550.3,0.78383]
[1748884896169,0.78382,2550.4,2550.3,2.02473]
[1748884896469,0.78385,2550.3,2550.2,0.6347]
[1748884896970,0.78385,2550.3,2550.2,1.41858]
[1748884897166,2.14525,2550.3,2550.2,0.6347]
[1748884897867,0.78385,2550.3,2550.2,1.41858]
[1748884898570,0.78385,2550.3,2550.2,0.6347]
[1748884898966,3.99165,2550.4,2550.2,0.6347]
[1748884899173,3.99165,2550.4,2550.2,1.41856]
[1748884899475,0.78385,2550.3,2550.2,1.41856]
[1748884899665,1.3614,2550.5,2550.2,1.41857]
[1748884899869,0.78385,2550.3,2550.2,1.41857]
[1748884900472,18.47,2550.6,2550.5,0.78379]
[1748884900669,3.2078,2550.7,2550.6,0.78376]
[1748884900670,3.99154,2550.7,2550.6,0.78376]
[1748884900864,18.472,2550.8,2550.4,7.33254]
[1748884901069,0.78371,2550.8,2550.7,0.78371]
[1748884901278,2.14327,2550.9,2550.8,0.7837]
[1748884901479,3.11908869,2551.1,2550.7,5.16706]
[1748884901675,3.11908869,2551.1,2550.9,0.78364]
[1748884901874,0.7836,2551.1,2551.0,1.264]
[1748884902377,0.78366,2550.9,2550.8,4.109]
[1748884902574,0.78366,2550.9,2550.8,4.7768]
[1748884902966,0.78366,2550.9,2550.8,5.56049]
[1748884903167,0.78367,2550.9,2550.8,5.56047]
[1748884903370,0.78367,2550.9,2550.8,4.7768]
[1748884904379,0.78367,2550.9,2550.8,0.6678]
[1748884904881,0.78367,2550.9,2550.8,1.4515]
[1748884905982,22.47445,2551.0,2550.9,0.78367]
[1748884906276,3.99145,2551.0,2550.9,2.01087]
[1748884907074,0.78365,2551.0,2550.9,2.01087]
[1748884907969,3.90273869,2551.0,2550.9,1.2272]
[1748884908274,0.78365,2551.0,2550.9,1.2272]
[1748884908475,3.90273869,2551.0,2550.9,1.2272]
[1748884908677,0.78367,2550.9,2550.8,0.6678]
[1748884908877,3.99147,2550.9,2550.8,0.6678]
[1748884909174,5.23717,2550.9,2550.8,0.6678]